fUSD/lending_fUSD_20250514
["ID","MTS","AMOUNT","RATE_DAILY","PERIOD"]
[361065476,1747228245138,-2386.73,0.00010979,2]
[361065477,1747228245147,-400.0,0.00010979,2]
[361065478,1747228245156,-408.16,0.00010979,2]
[361065479,1747228245165,-895.5,0.00010979,2]
[361065480,1747228245175,-674.03,0.00010979,2]
[361065481,1747228245184,-400.0,0.00010979,2]
[361065482,1747228245194,-889.01,0.00010979,2]
[361065483,1747228245203,-451.77,0.00010979,2]
[361065484,1747228245212,-999.42,0.00010979,2]
[361065485,1747228245222,-424.85,0.00010979,2]
[361065486,1747228245231,-400.0,0.00010979,2]
[361065487,1747228245241,-400.0,0.00010979,2]
[361065488,1747228245250,-400.0,0.0001098,2]
[361065489,1747228245260,-400.0,0.0001098,2]
[361065490,1747228245271,-553.34,0.0001098,2]
[361065491,1747228245280,-546.53,0.0001098,2]
[361065492,1747228245290,-400.0,0.0001098,2]
[361065493,1747228245299,-269.77,0.0001098,2]
[361065494,1747228245309,-400.0,0.0001098,2]
[361065495,1747228245319,-400.0,0.0001098,2]
[361065496,1747228245328,-400.0,0.0001098,2]
[361065497,1747228245337,-443.86066433,0.0001098,2]
[361065498,1747228245346,-400.0,0.0001098,2]
[361065499,1747228245356,-400.0,0.0001098,2]
[361065500,1747228245365,-329.5340329,0.0001098,2]
[361065501,1747228245376,-400.0,0.0001098,2]
[361065502,1747228245385,-400.0,0.0001098,2]
[361065503,1747228245394,-400.0,0.0001098,2]
[361065504,1747228245403,-230.70605791,0.0001098,2]
[361065505,1747228245413,-1683.91,0.0001098,2]
[361065506,1747228245423,-400.0,0.0001098,2]
[361065507,1747228245433,-400.0,0.0001098,2]
[361065508,1747228245443,-400.0,0.0001098,2]
[361065509,1747228245453,-400.0,0.0001098,2]
[361065510,1747228245463,-1655.42,0.0001098,2]
[361065511,1747228245472,-400.0,0.0001098,2]
[361065512,1747228245482,-400.0,0.0001098,2]
[361065513,1747228245497,-865.86,0.0001098,2]
[361065514,1747228245508,-400.0,0.0001098,2]
[361065515,1747228245518,-400.0,0.0001098,2]
[361065516,1747228245527,-400.0,0.0001098,2]
[361065517,1747228245537,-400.0,0.0001098,2]
[361065518,1747228245545,-400.0,0.0001098,2]
[361065519,1747228245553,-400.0,0.0001098,2]
[361065520,1747228245562,-400.0,0.0001098,2]
[361065521,1747228245571,-400.0,0.0001098,2]
[361065522,1747228245581,-400.0,0.0001098,2]
[361065523,1747228245590,-400.0,0.0001098,2]
[361065524,1747228245600,-400.0,0.0001098,2]
[361065525,1747228245609,-400.0,0.0001098,2]
[361065526,1747228245619,-400.0,0.0001098,2]
[361065527,1747228245628,-400.0,0.0001098,2]
[361065528,1747228245638,-690.77,0.0001098,2]
[361065529,1747228245647,-400.0,0.0001098,2]
[361065530,1747228245658,-400.0,0.0001098,2]
[361065531,1747228245667,-433.73,0.0001098,2]
[361065532,1747228245676,-400.0,0.0001098,2]
[361065533,1747228245685,-1413.76,0.0001098,2]
[361065534,1747228245694,-400.0,0.0001098,2]
[361065535,1747228245703,-400.0,0.0001098,2]
[361065536,1747228245713,-400.0,0.0001098,2]
[361065537,1747228245722,-474.91,0.0001098,2]
[361065538,1747228245731,-400.0,0.0001098,2]
[361065539,1747228245740,-190.08696304,0.0001098,2]
[361065540,1747228245750,-400.0,0.0001098,2]
[361065541,1747228245759,-400.0,0.0001098,2]
[361065542,1747228245769,-831.33,0.0001098,2]
[361065543,1747228245778,-282.4942183,0.0001098,2]
[361065544,1747228245788,-459.52,0.0001098,2]
[361065545,1747228245797,-959.2,0.0001098,2]
[361065546,1747228245806,-400.0,0.0001098,2]
[361065547,1747228245815,-400.0,0.0001098,2]
[361065548,1747228245825,-223.22751141,0.0001098,2]
[361065549,1747228245835,-535.42,0.0001098,2]
[361065550,1747228245844,-400.0,0.0001098,2]
[361065551,1747228245855,-400.0,0.0001098,2]
[361065552,1747228245865,-400.0,0.0001098,2]
[361065553,1747228245874,-400.0,0.0001098,2]
[361065554,1747228245884,-400.0,0.0001098,2]
[361065555,1747228245893,-400.0,0.0001098,2]
[361065556,1747228245903,-400.0,0.0001098,2]
[361065557,1747228245914,-412.46,0.0001098,2]
[361065558,1747228245923,-400.0,0.0001098,2]
[361065559,1747228245932,-204.20824551,0.0001098,2]
[361065560,1747228245941,-400.0,0.0001098,2]
[361065561,1747228245951,-1228.73,0.0001098,2]
[361065562,1747228245962,-400.0,0.0001098,2]
[361065563,1747228245971,-400.0,0.0001098,2]
[361065564,1747228245980,-400.0,0.0001098,2]
[361065565,1747228245989,-400.0,0.0001098,2]
[361065566,1747228245998,-832.02,0.0001098,2]
[361065567,1747228246007,-400.0,0.0001098,2]
[361065568,1747228246017,-155.4402479,0.0001098,2]
[361065569,1747228246026,-660.04,0.0001098,2]
[361065570,1747228246035,-400.0,0.0001098,2]
[361065571,1747228246045,-400.0,0.0001098,2]
[361065572,1747228246054,-952.58,0.0001098,2]
[361065573,1747228246063,-400.0,0.0001098,2]
[361065574,1747228246072,-400.0,0.0001098,2]
[361065575,1747228246082,-400.0,0.0001098,2]
[361065576,1747228246091,-400.0,0.0001098,2]
[361065577,1747228246100,-400.0,0.0001098,2]
[361065578,1747228246110,-400.0,0.0001098,2]
[361065579,1747228246119,-400.0,0.0001098,2]
[361065580,1747228246129,-400.0,0.0001098,2]
[361065581,1747228246143,-400.0,0.0001098,2]
[361065582,1747228246152,-400.0,0.0001098,2]
[361065583,1747228246162,-400.0,0.0001098,2]
[361065584,1747228246171,-333.33065279,0.0001098,2]
[361065585,1747228246181,-400.0,0.0001098,2]
[361065586,1747228246190,-400.0,0.0001098,2]
[361065587,1747228246200,-400.0,0.0001098,2]
[361065588,1747228246211,-400.0,0.0001098,2]
[361065589,1747228246220,-400.0,0.0001098,2]
[361065590,1747228246230,-234.84293843,0.0001098,2]
[361065591,1747228246239,-400.0,0.0001098,2]
[361065592,1747228246249,-400.0,0.0001098,2]
[361065593,1747228246260,-400.0,0.0001098,2]
[361065594,1747228246270,-400.0,0.0001098,2]
[361065595,1747228246280,-400.0,0.0001098,2]
[361065596,1747228246290,-400.0,0.0001098,2]
[361065597,1747228246299,-400.0,0.0001098,2]
[361065598,1747228246308,-400.0,0.0001098,2]
[361065599,1747228246318,-403.05,0.0001098,2]
[361065600,1747228246328,-601.12,0.0001098,2]
[361065601,1747228246338,-400.0,0.0001098,2]
[361065602,1747228246349,-400.0,0.0001098,2]
[361065603,1747228246358,-506.3428026,0.0001098,2]
[361065604,1747228246368,-400.0,0.0001098,2]
[361065605,1747228246378,-528.58,0.0001098,2]
[361065606,1747228246387,-400.0,0.0001098,2]
[361065607,1747228246397,-400.0,0.0001098,2]
[361065608,1747228246407,-498.75,0.0001098,2]
[361065609,1747228246417,-400.0,0.0001098,2]
[361065610,1747228246427,-400.0,0.0001098,2]
[361065611,1747228246437,-400.0,0.0001098,2]
[361065612,1747228246449,-200.0,0.00011,2]
[361065613,1747228246460,-800.0,0.00011,2]
[361065614,1747228246470,-3944.27,0.00011233,2]
[361065615,1747228246483,-1129.09,0.00011251,2]
[361065616,1747228246499,-778.0,0.00011251,2]
[361065617,1747228246510,-400.0,0.00011251,2]
[361065618,1747228246520,-400.0,0.00011251,2]
[361065619,1747228246532,-400.0,0.00011251,2]
[361065621,1747228246543,-400.0,0.00011251,2]
[361065622,1747228246553,-400.0,0.00011251,2]
[361065624,1747228246563,-437.4,0.00011251,2]
[361065625,1747228246576,-400.0,0.00011251,2]
[361065627,1747228246587,-400.0,0.00011252,2]
[361065628,1747228246597,-479.14,0.00011252,2]
[361065630,1747228246607,-150.0,0.00011252,2]
[361065631,1747228246617,-400.0,0.00011252,2]
[361065633,1747228246627,-1927.56,0.00011252,2]
[361065634,1747228246636,-400.0,0.00011252,2]
[361065635,1747228246646,-469.32,0.00011252,2]
[361065637,1747228246656,-400.0,0.00011252,2]
[361065638,1747228246666,-400.0,0.00011252,2]
[361065640,1747228246676,-400.0,0.00011252,2]
[361065641,1747228246686,-588.31,0.00011252,2]
[361065643,1747228246696,-400.0,0.00011252,2]
[361065645,1747228246708,-658.56,0.00011252,2]
[361065648,1747228246718,-918.16,0.00011252,2]
[361065650,1747228246728,-400.0,0.00011252,2]
[361065651,1747228246738,-400.0,0.00011252,2]
[361065653,1747228246748,-400.0,0.00011252,2]
[361065655,1747228246758,-400.0,0.00011252,2]
[361065658,1747228246768,-400.0,0.00011252,2]
[361065660,1747228246778,-400.0,0.00011252,2]
[361065662,1747228246787,-400.0,0.00011252,2]
[361065664,1747228246798,-407.98760606,0.00011252,2]
[361065666,1747228246807,-400.0,0.00011252,2]
[361065668,1747228246817,-400.0,0.00011252,2]
[361065670,1747228246827,-1225.12,0.00011252,2]
[361065672,1747228246836,-400.0,0.00011252,2]
[361065674,1747228246845,-477.55,0.00011252,2]
[361065676,1747228246855,-250.0,0.00011252,2]
[361065678,1747228246864,-421.7168297,0.00011252,2]
[361065680,1747228246874,-400.0,0.00011252,2]
[361065681,1747228246883,-538.23,0.00011252,2]
[361065683,1747228246893,-400.0,0.00011252,2]
[361065685,1747228246903,-400.0,0.00011252,2]
[361065686,1747228246913,-412.63295145,0.00011252,2]
[361065687,1747228246922,-425.92,0.00011252,2]
[361065688,1747228246932,-678.32,0.00011252,2]
[361065689,1747228246942,-410.73,0.00011252,2]
[361065690,1747228246952,-477.07722952,0.00011252,2]
[361065691,1747228246963,-413.92,0.00011252,2]
[361065692,1747228246972,-400.0,0.00011252,2]
[361065693,1747228246983,-507.39557771,0.00011252,2]
[361065694,1747228246993,-400.0,0.00011252,2]
[361065695,1747228247003,-660.32,0.00011252,2]
[361065696,1747228247013,-400.0,0.00011252,2]
[361065697,1747228247023,-400.0,0.00011252,2]
[361065698,1747228247033,-847.51,0.00011252,2]
[361065699,1747228247043,-400.0,0.00011252,2]
[361065700,1747228247052,-419.56772661,0.00011252,2]
[361065701,1747228247062,-400.0,0.00011252,2]
[361065702,1747228247072,-400.0,0.00011252,2]
[361065703,1747228247082,-400.0,0.00011252,2]
[361065704,1747228247091,-517.561951,0.00011252,2]
[361065705,1747228247101,-400.0,0.00011252,2]
[361065706,1747228247110,-400.0,0.00011252,2]
[361065707,1747228247120,-400.0,0.00011252,2]
[361065708,1747228247130,-400.0,0.00011252,2]
[361065709,1747228247139,-577.81,0.00011252,2]
[361065710,1747228247150,-400.0,0.00011252,2]
[361065711,1747228247159,-190.20575685,0.00011252,2]
[361065712,1747228247169,-403.83706726,0.00011252,2]
[361065713,1747228247179,-400.0,0.00011252,2]
[361065714,1747228247189,-400.0,0.00011252,2]
[361065715,1747228247199,-415.11843666,0.00011252,2]
[361065716,1747228247211,-400.0,0.00011252,2]
[361065717,1747228247221,-405.21,0.00011252,2]
[361065718,1747228247231,-400.0,0.00011252,2]
[361065719,1747228247242,-221.61342717,0.00011252,2]
[361065720,1747228247252,-815.38,0.00011252,2]
[361065721,1747228247262,-400.0,0.00011252,2]
[361065722,1747228247271,-400.0,0.00011252,2]
[361065723,1747228247281,-3291.998932,0.00011252,2]
[361065724,1747228247292,-200.081865,0.00011252,2]
[361065725,1747228247302,-400.0,0.00011252,2]
[361065726,1747228247312,-400.0,0.00011252,2]
[361065727,1747228247322,-1341.84,0.00011252,2]
[361065728,1747228247332,-446.07,0.00011252,2]
[361065729,1747228247343,-400.0,0.00011252,2]
[361065730,1747228247353,-400.0,0.00011252,2]
[361065731,1747228247363,-157.11954103,0.00011252,2]
[361065732,1747228247375,-400.0,0.00011252,2]
[361065733,1747228247384,-448.22,0.00011252,2]
[361065734,1747228247394,-679.2,0.00011252,2]
[361065735,1747228247404,-400.0,0.00011252,2]
[361065736,1747228247414,-400.0,0.00011252,2]
[361065737,1747228247424,-653.28,0.00011252,2]
[361065738,1747228247434,-400.0,0.00011252,2]
[361065739,1747228247445,-423.4,0.00011252,2]
[361065740,1747228247455,-400.0,0.00011252,2]
[361065741,1747228247466,-400.0,0.00011252,2]
[361065742,1747228247478,-400.0,0.00011252,2]
[361065744,1747228247491,-400.0,0.00011252,2]
[361065745,1747228247502,-400.0,0.00011252,2]
[361065746,1747228247512,-317.05796081,0.00011252,2]
[361065747,1747228247523,-485.97,0.00011252,2]
[361065748,1747228247534,-400.0,0.00011252,2]
[361065749,1747228247544,-400.0,0.00011252,2]
[361065750,1747228247554,-581.74,0.00011252,2]
[361065751,1747228247566,-400.0,0.00011252,2]
[361065752,1747228247577,-487.41,0.00011252,2]
[361065753,1747228247587,-574.25,0.00011252,2]
[361065754,1747228247597,-400.0,0.00011252,2]
[361065755,1747228247607,-400.0,0.00011252,2]
[361065756,1747228247616,-400.0,0.00011252,2]
[361065757,1747228247627,-400.0,0.00011252,2]
[361065758,1747228247637,-400.0,0.00011252,2]
[361065759,1747228247647,-602.35,0.00011252,2]
[361065760,1747228247658,-400.0,0.00011252,2]
[361065761,1747228247668,-400.0,0.00011252,2]
[361065762,1747228247678,-868.07,0.00011252,2]
[361065763,1747228247688,-400.0,0.00011252,2]
[361065764,1747228247699,-400.0,0.00011252,2]
[361065765,1747228247710,-400.0,0.00011252,2]
[361065766,1747228247720,-400.0,0.00011252,2]
[361065767,1747228247731,-400.0,0.00011252,2]
[361065768,1747228247740,-400.0,0.00011252,2]
[361065769,1747228247751,-434.0,0.00011252,2]
[361065770,1747228247762,-400.0,0.00011252,2]
[361065771,1747228247773,-400.0,0.00011252,2]
[361065772,1747228247783,-802.17,0.00011252,2]
[361065773,1747228247793,-400.0,0.00011252,2]
[361065774,1747228247804,-408.21,0.00011252,2]
[361065775,1747228247816,-400.0,0.00011252,2]
[361065776,1747228247827,-704.78,0.00011252,2]
[361065777,1747228247837,-454.72340144,0.00011252,2]
[361065778,1747228247847,-631.71,0.00011252,2]
[361065779,1747228247857,-400.0,0.00011252,2]
[361065780,1747228247867,-458.63,0.00011252,2]
[361065781,1747228247878,-400.0,0.00011252,2]
[361065782,1747228247888,-400.0,0.00011252,2]
[361065783,1747228247899,-489.16,0.00011252,2]
[361065784,1747228247909,-586.16,0.00011252,2]
[361065785,1747228247919,-225.37001647,0.00011252,2]
[361065786,1747228247929,-561.04,0.00011252,2]
[361065787,1747228247939,-600.22,0.00011252,2]
[361065788,1747228247949,-400.0,0.00011252,2]
[361065789,1747228247959,-557.66,0.00011252,2]
[361065790,1747228247970,-400.0,0.00011252,2]
[361065791,1747228247981,-585.02,0.00011252,2]
[361065792,1747228247990,-1695.74,0.00011252,2]
[361065793,1747228248000,-423.82019992,0.00011252,2]
[361065794,1747228248011,-400.0,0.00011252,2]
[361065795,1747228248020,-400.0,0.00011252,2]
[361065796,1747228248030,-400.0,0.00011252,2]
[361065797,1747228248040,-766.33,0.00011252,2]
[361065798,1747228248050,-400.0,0.00011252,2]
[361065799,1747228248060,-3468.75,0.00011252,2]
[361065800,1747228248070,-400.0,0.00011252,2]
[361065801,1747228248081,-400.0,0.00011252,2]
[361065802,1747228248092,-531.69,0.00011252,2]
[361065803,1747228248102,-2550.47,0.00011252,2]
[361065804,1747228248112,-400.0,0.00011252,2]
[361065805,1747228248122,-3123.31,0.00011252,2]
[361065806,1747228248134,-1189.04,0.00011252,2]
[361065807,1747228248145,-882.77,0.00011252,2]
[361065808,1747228248155,-400.0,0.00011252,2]
[361065809,1747228248166,-1817.11,0.00011252,2]
[361065810,1747228248176,-400.0,0.00011252,2]
[361065811,1747228248187,-400.0,0.00011252,2]
[361065812,1747228248198,-400.0,0.00011252,2]
[361065813,1747228248209,-1596.25,0.00011252,2]
[361065814,1747228248220,-745.57,0.00011252,2]
[361065815,1747228248231,-1012.45,0.00011252,2]
[361065816,1747228248242,-1256.16,0.00011252,2]
[361065817,1747228248252,-400.0,0.00011252,2]
[361065818,1747228248263,-400.0,0.00011252,2]
[361065819,1747228248273,-864.01,0.00011252,2]
[361065820,1747228248284,-2633.27,0.00011252,2]
[361065821,1747228248294,-1211.14,0.00011252,2]
[361065822,1747228248304,-2250.7,0.00011252,2]
[361065823,1747228248314,-400.0,0.00011252,2]
[361065824,1747228248325,-1384.85,0.00011252,2]
[361065825,1747228248334,-1550.13,0.00011252,2]
[361065826,1747228248344,-400.0,0.00011252,2]
[361065827,1747228248354,-8372.57,0.00011252,2]
[361065828,1747228248364,-856.17,0.00011252,2]
[361065829,1747228248375,-707.69,0.00011252,2]
[361065830,1747228248385,-623.12,0.00011252,2]
[361065831,1747228248395,-400.0,0.00011252,2]
[361065832,1747228248405,-318.2806997,0.00011252,2]
[361065833,1747228248415,-1414.36,0.00011252,2]
[361065834,1747228248426,-400.0,0.00011252,2]
[361065835,1747228248436,-400.0,0.00011252,2]
[361065836,1747228248445,-400.0,0.00011252,2]
[361065837,1747228248456,-4962.56,0.00011252,2]
[361065838,1747228248467,-400.0,0.00011252,2]
[361065839,1747228248479,-1225.9,0.00011252,2]
[361065840,1747228248493,-400.0,0.00011252,2]
[361065841,1747228248502,-2498.23,0.00011252,2]
[361065842,1747228248513,-400.0,0.00011252,2]
[361065843,1747228248523,-1110.04,0.00011252,2]
[361065844,1747228248533,-528.79100442,0.00011252,2]
[361065845,1747228249419,-315.32000001,0.00010978,2]
[361065846,1747228249445,-572.03999999,0.00010978,2]
[361065847,1747228249456,-341.79899558,0.00011252,2]
[361065848,1747228249468,-400.0,0.00011252,2]
[361065849,1747228249478,-400.0,0.00011252,2]
[361065850,1747228249489,-697.35,0.00011252,2]
[361065851,1747228249499,-1640.72,0.00011252,2]
[361065852,1747228249509,-1852.0,0.00011252,2]
[361065853,1747228249519,-400.0,0.00011252,2]
[361065854,1747228249528,-419.52,0.00011252,2]
[361065855,1747228249538,-1283.81,0.00011252,2]
[361065856,1747228249548,-570.47,0.00011252,2]
[361065857,1747228249558,-717.59,0.00011252,2]
[361065858,1747228249569,-404.2885855,0.00011252,2]
[361065859,1747228249582,-1327.68680572,0.00011252,2]
[361065860,1747228249594,-17.68460878,0.00011252,2]
[361065861,1747228249604,-400.0,0.00011252,2]
[361065862,1747228249614,-400.0,0.00011252,2]
[361065863,1747228249623,-400.0,0.00011252,2]
[361065864,1747228249633,-422.22,0.00011252,2]
[361065865,1747228249643,-1439.21,0.00011252,2]
[361065866,1747228249653,-400.0,0.00011252,2]
[361065867,1747228249663,-410.71,0.00011252,2]
[361065868,1747228249673,-400.0,0.00011252,2]
[361065869,1747228249683,-498.72539122,0.00011252,2]
[361065870,1747228249695,-12579.99460878,0.00011252,2]
[361065871,1747228249705,-400.0,0.00011252,2]
[361065872,1747228249716,-1051.81,0.00011252,2]
[361065873,1747228249726,-905.77,0.00011252,2]
[361065874,1747228249735,-761.4,0.00011252,2]
[361065875,1747228249745,-1468.36,0.00011252,2]
[361065876,1747228249754,-400.0,0.00011252,2]
[361065877,1747228249764,-5048.22539122,0.00011252,2]
[361065878,1747228249789,-1600.80460878,0.00011252,2]
[361065879,1747228249799,-400.0,0.00011252,2]
[361065880,1747228249808,-144.19539122,0.00011252,2]
[361065881,1747228249820,-255.80460878,0.00011252,2]
[361065882,1747228249830,-400.0,0.00011252,2]
[361065883,1747228249840,-400.0,0.00011252,2]
[361065884,1747228249849,-56.08754922,0.00011252,2]
[361065885,1747228249865,-443.99245078,0.00011252,2]
[361065886,1747228249875,-400.0,0.00011252,2]
[361065887,1747228249885,-400.0,0.00011252,2]
[361065888,1747228249895,-400.0,0.00011252,2]
[361065889,1747228249904,-1780.71,0.00011252,2]
[361065890,1747228249914,-461.86,0.00011252,2]
[361065891,1747228249923,-2156.08,0.00011252,2]
[361065892,1747228249933,-400.0,0.00011252,2]
[361065893,1747228249943,-549.9,0.00011252,2]
[361065894,1747228249952,-400.0,0.00011252,2]
[361065895,1747228249963,-2196.95,0.00011252,2]
[361065896,1747228249973,-400.0,0.00011252,2]
[361065897,1747228249983,-1008.74,0.00011252,2]
[361065898,1747228249994,-400.0,0.00011252,2]
[361065899,1747228250005,-1560.45,0.00011252,2]
[361065900,1747228250015,-5542.82,0.00011252,2]
[361065901,1747228250026,-400.0,0.00011252,2]
[361065902,1747228250037,-665.98,0.00011252,2]
[361065903,1747228250047,-3110.08,0.00011252,2]
[361065904,1747228250057,-400.0,0.00011252,2]
[361065905,1747228250066,-1113.86,0.00011252,2]
[361065906,1747228250076,-436.34,0.00011252,2]
[361065907,1747228250086,-400.0,0.00011252,2]
[361065908,1747228250096,-715.33,0.00011252,2]
[361065909,1747228250106,-5153.14,0.00011252,2]
[361065910,1747228250116,-400.0,0.00011252,2]
[361065911,1747228250126,-400.0,0.00011252,2]
[361065912,1747228250136,-400.0,0.00011252,2]
[361065913,1747228250146,-607.62,0.00011252,2]
[361065914,1747228250155,-505.3,0.00011252,2]
[361065915,1747228250165,-2752.82,0.00011252,2]
[361065916,1747228250175,-400.0,0.00011252,2]
[361065917,1747228250185,-440.07,0.00011252,2]
[361065918,1747228250194,-627.06,0.00011252,2]
[361065919,1747228250204,-400.0,0.00011252,2]
[361065920,1747228250215,-646.39,0.00011252,2]
[361065921,1747228250226,-988.69,0.00011252,2]
[361065922,1747228250235,-813.42,0.00011252,2]
[361065923,1747228250245,-7791.75,0.00011252,2]
[361065924,1747228250256,-4320.39,0.00011252,2]
[361065925,1747228250266,-414.74289954,0.00011252,2]
[361065926,1747228250276,-660.07,0.00011252,2]
[361065927,1747228250285,-400.0,0.00011252,2]
[361065928,1747228250295,-400.0,0.00011252,2]
[361065929,1747228250305,-400.0,0.00011252,2]
[361065930,1747228250315,-400.0,0.00011252,2]
[361065931,1747228250325,-1407.81,0.00011252,2]
[361065932,1747228250335,-633.25,0.00011252,2]
[361065933,1747228250345,-7072.39,0.00011252,2]
[361065934,1747228250355,-400.0,0.00011252,2]
[361065935,1747228250366,-728.95,0.00011252,2]
[361065936,1747228250375,-410.23,0.00011252,2]
[361065937,1747228250385,-1137.71,0.00011252,2]
[361065938,1747228250395,-25627.99,0.00011252,2]
[361065939,1747228250405,-400.0,0.00011252,2]
[361065940,1747228250415,-415.9,0.00011252,2]
[361065941,1747228250425,-508.88,0.00011252,2]
[361065942,1747228250435,-400.0,0.00011252,2]
[361065943,1747228250445,-445.98,0.00011252,2]
[361065944,1747228250455,-1758.91,0.00011252,2]
[361065945,1747228250466,-1755.66,0.00011252,2]
[361065946,1747228250476,-1286.63,0.00011252,2]
[361065947,1747228250489,-400.0,0.00011252,2]
[361065948,1747228250499,-1946.45,0.00011252,2]
[361065949,1747228250509,-1042.61,0.00011252,2]
[361065950,1747228250518,-400.0,0.00011252,2]
[361065951,1747228250529,-778.97,0.00011252,2]
[361065952,1747228250539,-753.85,0.00011252,2]
[361065953,1747228250549,-400.0,0.00011252,2]
[361065954,1747228250559,-2255.48,0.00011252,2]
[361065955,1747228250569,-2257.22,0.00011252,2]
[361065956,1747228250579,-400.0,0.00011252,2]
[361065957,1747228250588,-400.0,0.00011252,2]
[361065958,1747228250599,-400.0,0.00011252,2]
[361065959,1747228250609,-4459.21,0.00011252,2]
[361065960,1747228250618,-988.65,0.00011252,2]
[361065961,1747228250629,-1000.0,0.00011252,2]
[361065962,1747228250638,-400.0,0.00011252,2]
[361065963,1747228250649,-408.2,0.00011252,2]
[361065964,1747228250659,-1248.59,0.00011252,2]
[361065965,1747228250669,-1309.42,0.00011252,2]
[361065966,1747228250679,-400.0,0.00011252,2]
[361065967,1747228250688,-942.31,0.00011252,2]
[361065968,1747228250698,-560.85,0.00011252,2]
[361065969,1747228250710,-400.0,0.00011252,2]
[361065970,1747228250720,-400.0,0.00011252,2]
[361065971,1747228250730,-1606.95,0.00011252,2]
[361065972,1747228250740,-400.0,0.00011252,2]
[361065973,1747228250749,-887.36,0.00011252,2]
[361065974,1747228250759,-1058.45,0.00011253,2]
[361065975,1747228250770,-554.55,0.00011253,2]
[361065976,1747228250780,-1023.62,0.00011253,2]
[361065977,1747228250790,-646.9,0.00011253,2]
[361065978,1747228250800,-400.0,0.00011253,2]
[361065979,1747228250809,-400.0,0.00011253,2]
[361065980,1747228250819,-400.0,0.00011253,2]
[361065981,1747228250829,-518.04,0.00011253,2]
[361065982,1747228250839,-400.0,0.00011253,2]
[361065983,1747228250849,-474.18,0.00011253,2]
[361065984,1747228250858,-400.0,0.00011253,2]
[361065985,1747228250868,-410.4,0.00011253,2]
[361065986,1747228250878,-400.0,0.00011253,2]
[361065987,1747228250887,-585.18,0.00011253,2]
[361065988,1747228250897,-400.0,0.00011253,2]
[361065989,1747228250908,-400.0,0.00011253,2]
[361065990,1747228250917,-400.0,0.00011253,2]
[361065991,1747228250927,-400.0,0.00011253,2]
[361065992,1747228250937,-400.0,0.00011253,2]
[361065993,1747228250947,-561.3,0.00011253,2]
[361065994,1747228250956,-400.0,0.00011253,2]
[361065995,1747228250967,-400.0,0.00011253,2]
[361065996,1747228250977,-400.0,0.00011253,2]
[361065997,1747228250987,-767.29,0.00011253,2]
[361065998,1747228250997,-400.0,0.00011253,2]
[361065999,1747228251006,-1839.75,0.00011253,2]
[361066000,1747228251016,-1248.26,0.00011253,2]
[361066001,1747228251026,-400.0,0.00011253,2]
[361066002,1747228251035,-878.55,0.00011253,2]
[361066003,1747228251045,-443.44,0.00011253,2]
[361066004,1747228251054,-643.1,0.00011253,2]
[361066005,1747228251064,-2381.08,0.00011253,2]